bitfinex-derivatives/quotes_BNBF0:USTF0_20250904
["timestamp","ask_amount","ask_price","bid_price","bid_amount"]
[1756996591469,0.20533941,847.56,846.96,0.79560741]
[1756996591669,0.20533941,847.56,846.88,0.79560741]
[1756996591868,0.20533941,847.56,846.91,0.79560741]
[1756996592469,0.20533941,847.56,846.92,0.79560741]
[1756996593173,0.20533941,847.56,846.91,0.79560741]
[1756996593465,0.20533941,847.56,846.93,0.79560741]
[1756996593666,0.20533941,847.56,846.92,0.79560741]
[1756996593871,0.20533941,847.56,846.91,0.79560741]
[1756996594370,0.20533941,847.56,846.92,0.79560741]
[1756996595466,0.20533941,847.56,846.93,0.79560741]
[1756996596770,0.72268219,847.73,846.93,0.79560741]
[1756996596966,3.6982321,850.03,847.03,0.79560741]
[1756996596967,0.72268219,847.72,847.03,0.79560741]
[1756996597170,0.2053061,847.68,847.14,0.79560741]
[1756996597370,0.2053061,847.68,847.13,0.79560741]
[1756996598474,0.2053061,847.68,847.12,0.79560741]
[1756996599473,0.2053061,847.68,847.11,0.79560741]
[1756996600675,0.72268219,847.74,847.13,0.79560741]
[1756996600976,1.0566377,848.0,845.96,2.6432678]
[1756996600977,0.72268219,847.73,847.14,0.79560741]
[1756996601176,0.72268219,847.72,847.14,0.79560741]
[1756996601377,0.72268219,847.71,847.13,0.79560741]
[1756996601570,0.72268219,847.7,847.13,0.79560741]
[1756996601770,0.72268219,847.69,847.13,0.79560741]
[1756996602071,0.72268219,847.68,847.12,0.79560741]
[1756996602372,0.72268219,847.67,847.11,0.79560741]
[1756996602576,0.2052843,847.77,847.11,0.79560741]
[1756996603275,0.2052843,847.77,847.1,0.79560741]
[1756996603473,0.2052843,847.77,847.15,0.79560741]
[1756996604274,0.2052843,847.77,846.92,1.0573071]
[1756996604275,0.2052843,847.77,847.14,0.79560741]
[1756996604478,0.2052843,847.77,847.15,0.79560741]
[1756996604979,0.2052843,847.77,847.14,0.79560741]
[1756996605177,0.2052843,847.77,847.16,0.79560741]
[1756996605378,0.2052843,847.77,847.15,0.79560741]
[1756996606382,0.72181869,847.94,847.14,0.79560741]
[1756996606582,0.20526008,847.85,847.2,0.79560741]
[1756996607082,0.20526008,847.85,847.19,0.79560741]
[1756996607279,0.20526008,847.85,847.18,0.79560741]
[1756996607483,0.20526008,847.85,847.17,0.79560741]
[1756996608483,0.20526008,847.85,847.16,0.79560741]
[1756996609280,0.20526008,847.85,847.15,0.79560741]
[1756996609580,0.20526008,847.85,847.18,0.79560741]
[1756996610482,0.20526008,847.85,847.17,0.79560741]
[1756996610686,0.20526008,847.85,847.18,0.79560741]
[1756996611287,0.20526008,847.85,847.17,0.79560741]
[1756996612490,0.20526008,847.85,847.18,0.79560741]
[1756996613690,0.20526008,847.85,847.17,0.79560741]
[1756996615285,0.20526008,847.85,847.16,0.79560741]
[1756996615490,0.20526008,847.85,847.19,0.79560741]
[1756996616989,0.20526008,847.85,847.2,0.79560741]
[1756996618591,0.20526008,847.85,847.19,0.79560741]
[1756996618788,0.20526008,847.85,847.2,0.79560741]
[1756996619187,0.20526008,847.85,847.21,0.79560741]
[1756996621896,0.20526008,847.85,847.22,0.79560741]
[1756996622091,0.20526008,847.85,847.23,0.79560741]
[1756996623489,0.20526008,847.85,847.24,0.79560741]
[1756996626293,0.20526008,847.85,847.23,0.79560741]
[1756996628290,0.20526008,847.85,847.22,0.79560741]
[1756996629190,0.20526008,847.85,847.19,0.79560741]
[1756996629593,0.20526008,847.85,847.02,1.0573071]
[1756996629594,0.20526008,847.85,847.17,0.79560741]
[1756996631097,0.20526008,847.85,847.04,0.79560741]
[1756996632196,0.20526008,847.85,847.05,0.79560741]
[1756996635097,0.20526008,847.85,847.06,0.79560741]
[1756996636093,0.20526008,847.85,847.07,0.79560741]
[1756996636699,0.20526008,847.85,847.08,0.79560741]
[1756996637292,0.20526008,847.85,847.14,0.79560741]
[1756996637496,0.20526008,847.85,847.16,0.79560741]
[1756996639494,0.20526008,847.85,847.17,0.79560741]
[1756996640496,0.20526008,847.85,847.16,0.79560741]
[1756996641900,0.20526008,847.85,847.17,0.79560741]
[1756996642202,0.20526008,847.85,847.21,0.79560741]
[1756996642696,0.20526008,847.85,847.2,0.79560741]
[1756996642897,0.20526008,847.85,847.19,0.79560741]
[1756996643297,0.20526008,847.85,847.2,0.79560741]
[1756996643798,0.20526008,847.85,847.23,0.79560741]
[1756996644102,0.20526008,847.85,847.27,0.79560741]
[1756996644404,0.20526008,847.85,847.28,0.79560741]
[1756996645000,0.20526008,847.85,847.23,0.79560741]
[1756996645398,0.20526008,847.85,847.24,0.79560741]
[1756996647300,0.20526008,847.85,847.25,0.79560741]
[1756996650308,0.20526008,847.85,847.26,0.79560741]
[1756996652111,0.20526008,847.85,847.27,0.79560741]
[1756996653208,0.20526008,847.85,847.28,0.79560741]
[1756996654513,0.20526008,847.85,847.29,0.79560741]
[1756996655015,0.20526008,847.85,847.33,0.79560741]
[1756996656214,0.20526008,847.85,847.34,0.79560741]
[1756996656415,0.92724762,847.85,847.35,0.79560741]
[1756996656612,0.20526008,847.85,847.34,0.79560741]
[1756996657321,0.20526008,847.85,847.37,0.79560741]
[1756996657617,0.7227473,847.93,847.37,0.79560741]
[1756996657916,0.7227473,847.93,846.47,2.6432678]
[1756996657917,0.79441278,848.03,847.41,0.79560741]
[1756996658114,0.79441278,848.36,847.52,0.79560741]
[1756996658318,0.20521106,848.11,847.51,0.79560741]
[1756996659918,0.20521106,848.11,847.28,1.0573071]
[1756996659919,0.20521106,848.11,847.5,0.79560741]
[1756996660320,0.20521106,848.11,847.49,0.79560741]
[1756996660820,0.20521106,848.11,847.48,0.79560741]
[1756996661225,0.20521106,848.11,847.47,0.79560741]
[1756996661717,0.20521106,848.11,847.48,0.79560741]
[1756996662117,0.20521106,848.11,847.39,0.79560741]
[1756996662823,0.20521106,848.11,847.41,0.79560741]
[1756996663025,0.20521106,848.11,847.42,0.79560741]
[1756996663222,0.20521106,848.11,847.41,0.79560741]
[1756996663621,0.92632895,848.11,847.41,0.79560741]
[1756996663921,0.72111789,848.1,847.41,0.79560741]
[1756996664125,0.20521106,848.11,847.41,0.79560741]
[1756996664521,0.20521106,848.11,847.43,0.79560741]
[1756996665321,0.20521106,848.11,847.44,0.79560741]
[1756996665525,0.20521106,848.11,847.43,0.79560741]
[1756996665820,0.20521106,848.11,847.38,0.79560741]
[1756996666223,0.20521106,848.11,847.4,0.79560741]
[1756996667326,0.20521106,848.11,847.41,0.79560741]
[1756996669532,0.9262427,848.11,847.42,0.79560741]
[1756996669726,0.72103164,848.1,847.42,0.79560741]
[1756996669927,0.20521106,848.11,847.42,0.79560741]
[1756996670434,0.20521106,848.11,847.41,0.79560741]
[1756996670629,0.20521106,848.11,847.42,0.79560741]
[1756996671134,0.20521106,848.11,847.41,0.79560741]
[1756996672337,0.9262427,848.11,847.41,0.79560741]
[1756996672636,0.9262427,848.11,847.39,0.79560741]
[1756996672835,0.72103164,848.1,847.39,0.79560741]
[1756996673032,0.72103164,848.1,847.09,1.5859607]
[1756996673033,0.72103164,848.1,847.4,0.79560741]
[1756996673235,0.9262427,848.11,847.4,0.79560741]
[1756996674131,0.9262427,848.11,847.39,0.79560741]
[1756996674338,0.72103164,848.1,847.39,0.79560741]
[1756996674732,0.72103164,848.1,847.38,0.79560741]
[1756996674936,0.20521106,848.11,847.36,0.79560741]
[1756996676339,0.9262427,848.11,847.36,0.79560741]
[1756996676539,0.72103164,848.1,847.36,0.79560741]
[1756996677040,0.20521106,848.11,847.37,0.79560741]
[1756996677340,0.20521106,848.11,847.38,0.79560741]
[1756996677640,0.20521106,848.11,847.37,0.79560741]
[1756996678240,0.9262427,848.11,847.36,0.79560741]
[1756996678439,0.72103164,848.1,847.38,0.79560741]
[1756996678739,0.20521106,848.11,847.38,0.79560741]
[1756996679141,0.20521106,848.11,847.37,0.79560741]
[1756996680241,0.20521106,848.11,847.36,0.79560741]
[1756996681542,0.9262427,848.11,847.36,0.79560741]
[1756996681739,0.72103164,848.1,847.37,0.79560741]
[1756996682039,0.20521106,848.11,847.37,0.79560741]
[1756996682343,0.20521106,848.11,847.3,0.79560741]
[1756996682644,0.20521106,848.11,846.82,1.5859607]
[1756996682645,0.20521106,848.11,847.32,0.79560741]
[1756996684043,0.9262427,848.11,847.32,0.79560741]
[1756996684239,0.9262427,848.11,846.84,1.5859607]
[1756996684240,0.20521106,848.11,847.33,0.79560741]
[1756996689444,0.20521106,848.11,847.32,0.79560741]
[1756996690143,0.20521106,848.11,847.33,0.79560741]
[1756996692249,0.20521106,848.11,847.38,0.79560741]
[1756996693948,0.20521106,848.11,847.39,0.79560741]
[1756996694847,0.20521106,848.11,847.41,0.79560741]
[1756996695345,0.20521106,848.11,847.42,0.79560741]
[1756996696847,0.20521106,848.11,847.43,0.79560741]
[1756996697550,0.20521106,848.11,847.42,0.79560741]
[1756996698450,0.20521106,848.11,847.43,0.79560741]
[1756996699152,0.20521106,848.11,847.42,0.79560741]
[1756996699352,0.20521106,848.11,847.4,0.79560741]
[1756996700852,0.92687861,848.11,847.4,0.79560741]
[1756996701051,0.72166755,848.1,847.4,0.79560741]
[1756996701251,0.72166755,848.1,847.41,0.79560741]
[1756996701450,0.20521106,848.11,847.41,0.79560741]
[1756996702249,0.20521106,848.11,847.42,0.79560741]
[1756996703751,0.20521106,848.11,847.41,0.79560741]
[1756996704351,0.20521106,848.11,847.42,0.79560741]
[1756996707357,0.20521106,848.11,846.32,0.20524193]
[1756996707358,0.20521106,848.11,847.43,0.79560741]
[1756996708161,0.92729849,848.11,847.43,0.79560741]
[1756996708357,0.72208743,848.1,847.43,0.79560741]
[1756996708558,0.72208743,848.09,847.43,0.79560741]
[1756996708757,0.72208743,848.08,847.42,0.79560741]
[1756996708961,0.72208743,848.07,847.43,0.79560741]
[1756996709157,0.72208743,848.06,847.43,0.79560741]
[1756996709359,0.72208743,848.05,847.46,0.79560741]
[1756996709561,0.72208743,848.04,847.46,0.79560741]
[1756996709760,0.20521106,848.11,847.46,0.79560741]
[1756996711467,0.20521106,848.11,847.47,0.79560741]
[1756996711964,0.20521106,848.11,847.46,0.79560741]
[1756996713365,0.92761627,848.11,847.47,0.79560741]
[1756996713567,0.72240521,848.1,847.47,0.79560741]
[1756996713767,0.72240521,848.09,847.45,0.79560741]
[1756996714068,0.72240521,848.08,847.43,0.79560741]
[1756996714268,0.72240521,848.07,847.45,0.79560741]
[1756996714466,0.20521106,848.11,847.45,0.79560741]
[1756996715168,0.20521106,848.11,847.46,0.79560741]
[1756996717166,0.20521106,848.11,847.47,0.79560741]
[1756996717366,0.20521106,848.11,847.48,0.79560741]
[1756996718571,0.20521106,848.11,847.49,0.79560741]
[1756996719068,0.20521106,848.11,847.48,0.79560741]
[1756996721276,0.20521106,848.11,847.49,0.79560741]
[1756996723576,0.20521106,848.11,847.5,0.79560741]
[1756996724074,0.20521106,848.11,847.53,0.79560741]
[1756996724677,0.9288889,848.11,847.53,0.79560741]
[1756996724874,0.72367784,848.1,847.53,0.79560741]
[1756996725078,0.72367784,848.09,847.53,0.79560741]
[1756996725378,0.72367784,848.08,847.53,0.79560741]
[1756996725579,0.72367784,848.07,847.55,0.79560741]
[1756996725774,0.20521106,848.11,847.62,0.79560741]
[1756996726775,0.72383703,848.21,847.62,0.79560741]
[1756996726979,0.92900393,848.21,847.62,0.79560741]
[1756996727273,0.92900393,848.21,847.44,1.0573071]
[1756996727274,0.92900393,848.21,847.61,0.79560741]
[1756996727480,0.72383703,848.2,847.61,0.79560741]
[1756996727682,0.72383703,848.19,847.6,0.79560741]
[1756996727880,0.72369727,848.18,847.6,0.79560741]
[1756996728076,0.72369727,848.17,847.6,0.79560741]
[1756996728281,0.72369727,848.16,847.59,0.79560741]
[1756996728580,0.72369727,848.15,847.59,0.79560741]
[1756996728777,0.72369727,848.14,847.59,0.79560741]
[1756996729080,0.72369727,848.13,847.58,0.79560741]
[1756996729277,0.2051669,848.21,847.59,0.79560741]
[1756996730283,0.2051669,848.21,846.32,0.20524193]
[1756996730284,0.2051669,848.21,847.58,0.79560741]
[1756996731384,0.2051669,848.21,847.57,0.79560741]
[1756996731584,0.2051669,848.21,847.58,0.79560741]
[1756996733386,0.2051669,848.21,847.57,0.79560741]
[1756996734185,0.2051669,848.21,847.53,0.79560741]
[1756996734382,0.92859165,848.21,847.53,0.79560741]
[1756996734586,0.72342475,848.2,847.53,0.79560741]
[1756996734885,0.72342475,848.19,847.53,0.79560741]
[1756996735082,0.72342475,848.18,847.53,0.79560741]
[1756996735386,0.72342475,848.17,847.53,0.79560741]
[1756996735683,0.72342475,848.16,847.54,0.79560741]
[1756996735881,0.2051669,848.21,847.54,0.79560741]
[1756996739087,0.2051669,848.21,847.56,0.79560741]
[1756996740887,0.2051669,848.21,847.55,0.79560741]
[1756996741988,0.2051669,848.21,847.56,0.79560741]
[1756996744187,0.2051669,848.21,847.61,0.79560741]
[1756996744988,0.2051669,848.21,847.6,0.79560741]
[1756996745885,0.92839492,848.21,847.6,0.79560741]
[1756996746090,0.72322802,848.2,847.6,0.79560741]
[1756996746285,0.72322802,848.19,847.6,0.79560741]
[1756996746490,0.72322802,848.18,847.6,0.79560741]
[1756996746691,0.72322802,848.17,847.6,0.79560741]
[1756996746890,0.72322802,848.16,847.6,0.79560741]
[1756996747088,0.72322802,848.15,847.6,0.79560741]
[1756996747292,0.72322802,848.14,847.59,0.79560741]
[1756996747489,0.72335946,848.13,847.59,0.79560741]
[1756996747693,0.2051669,848.21,847.59,0.79560741]
[1756996747993,0.2051669,848.21,847.6,0.79560741]
[1756996750289,0.92852636,848.21,847.42,1.0573071]
[1756996750494,0.72335946,848.2,847.42,1.0573071]
[1756996750693,0.72335946,848.19,847.42,1.0573071]
[1756996750890,0.72335946,848.18,847.42,1.0573071]
[1756996751088,0.72335946,848.17,847.42,1.0573071]
[1756996751390,0.72335946,848.16,847.42,1.0573071]
[1756996751593,0.72335946,848.15,847.42,1.0573071]
[1756996751792,0.72335946,848.14,847.25,1.5859607]
[1756996751997,0.72335946,848.13,847.25,1.5859607]
[1756996752194,0.2051669,848.21,847.25,1.5859607]
[1756996752994,0.2051669,848.21,846.54,2.6432678]
[1756996754494,0.2051669,848.21,847.6,0.79285832]
[1756996754996,0.2051669,848.21,847.61,0.79285832]
[1756996755896,0.2051669,848.21,847.59,0.79285832]
[1756996757497,0.2051669,848.21,847.6,0.79285832]
[1756996757898,0.99963527,848.21,847.61,0.79285832]
[1756996758099,0.723341,848.2,847.61,0.79285832]
[1756996758494,0.723341,848.2,847.62,0.79285832]
[1756996759100,0.723341,848.19,847.62,0.79285832]
[1756996759297,0.99963527,848.21,847.63,0.79285832]
[1756996759298,0.723341,848.18,847.63,0.79285832]
[1756996759495,0.723341,848.17,847.62,0.79285832]
[1756996759797,0.723341,848.16,847.63,0.79285832]
[1756996760100,0.723341,848.15,847.63,0.79285832]
[1756996760297,0.723341,848.14,847.63,0.79285832]
[1756996760500,0.723341,848.13,847.63,0.79285832]
[1756996760697,0.723341,848.12,847.64,0.79285832]
[1756996760901,0.723341,848.11,847.64,0.79285832]
[1756996761197,0.723341,848.1,847.64,0.79285832]
[1756996761397,0.723341,848.09,847.64,0.79285832]
[1756996761595,0.79446837,848.19,847.64,0.79285832]
[1756996761797,0.72348748,848.18,847.63,0.79285832]
[1756996761997,0.72348748,848.17,847.63,0.79285832]
[1756996762197,0.72348748,848.16,847.63,0.79285832]
[1756996762496,0.79446837,848.2,846.53,3.700575]
[1756996762497,0.72348748,848.15,847.62,0.79285832]
[1756996762699,0.72348748,848.14,847.62,0.79285832]
[1756996762896,0.2051669,848.21,847.61,0.79285832]
[1756996762897,0.72348748,848.13,847.61,0.79285832]
[1756996763096,0.72348748,848.12,847.61,0.79285832]
[1756996763396,0.72348748,848.11,847.61,0.79285832]
[1756996763696,0.72348748,848.1,847.61,0.79285832]
[1756996763901,0.72348748,848.09,847.61,0.79285832]
[1756996764200,0.99963527,848.21,847.62,0.79285832]
[1756996764401,0.7235403,848.2,847.62,0.79285832]
[1756996765100,0.7235403,848.2,847.61,0.79285832]
[1756996765297,0.7235403,848.2,847.62,0.79285832]
[1756996765596,0.7235403,848.2,847.61,0.79285832]
[1756996765797,0.7235403,848.19,847.61,0.79285832]
[1756996765997,0.7235403,848.18,847.61,0.79285832]
[1756996766201,0.2051669,848.21,847.61,0.79285832]
[1756996766202,0.7235403,848.17,847.61,0.79285832]
[1756996766402,0.7235403,848.16,847.61,0.79285832]
[1756996766701,0.7235403,848.15,847.61,0.79285832]
[1756996766902,0.7235403,848.14,847.61,0.79285832]
[1756996767103,0.7235403,848.13,847.61,0.79285832]
[1756996767402,0.7235403,848.12,847.61,0.79285832]
[1756996767603,0.7235403,848.11,847.61,0.79285832]
[1756996767803,0.7235403,848.1,847.61,0.79285832]
[1756996768097,0.7235403,848.09,847.61,0.79285832]
[1756996768301,0.2051669,848.21,847.61,0.79285832]
[1756996768897,0.9288591,848.21,847.61,0.79285832]
[1756996769098,0.7236922,848.2,847.61,0.79285832]
[1756996769301,0.7236922,848.19,847.61,0.79285832]
[1756996769504,0.7236922,848.18,847.61,0.79285832]
[1756996769699,0.7236922,848.17,847.61,0.79285832]
[1756996769905,0.7236922,848.16,847.61,0.79285832]
[1756996770098,0.7236922,848.15,847.61,0.79285832]
[1756996770400,0.7236922,848.14,847.62,0.79285832]
[1756996770602,0.7236922,848.13,847.61,0.79285832]
[1756996770805,0.7236922,848.12,847.61,0.79285832]
[1756996771002,0.7236922,848.11,847.61,0.79285832]
[1756996771206,0.7236922,848.1,847.62,0.79285832]
[1756996771403,0.7236922,848.09,847.62,0.79285832]
[1756996771602,0.7236922,848.08,847.62,0.79285832]
[1756996771807,0.99963527,848.21,847.62,0.79285832]
[1756996772007,0.72378498,848.2,847.62,0.79285832]
[1756996772408,0.79446837,848.2,847.63,0.79285832]
[1756996773505,0.72382495,848.19,847.63,0.79285832]
[1756996774309,1.51829332,848.19,847.63,0.79285832]
[1756996774609,0.72382495,848.18,847.63,0.79285832]
[1756996774807,0.72382495,848.18,847.58,0.79285832]
[1756996775014,0.72382495,848.17,847.58,0.79285832]
[1756996775211,0.72382495,848.16,847.46,0.79285832]
[1756996775410,0.72382495,848.15,847.41,0.79285832]
[1756996775708,0.72382495,848.14,847.41,0.79285832]
[1756996775905,0.72382495,848.13,847.41,0.79285832]
[1756996776108,0.72382495,848.12,847.41,0.79285832]
[1756996776306,0.72382495,848.11,847.41,0.79285832]
[1756996776507,0.72382495,848.1,847.41,0.79408752]
[1756996776715,0.72382495,848.09,847.41,0.79408752]
[1756996776905,0.72382495,848.08,847.41,0.79408752]
[1756996777109,0.72382495,848.07,847.41,0.79408752]
[1756996777311,0.72382495,848.06,847.4,0.79408752]
[1756996777513,0.72382495,848.05,847.41,0.79408752]
[1756996777813,0.72382495,848.04,847.41,0.79408752]
[1756996778009,0.72382495,848.03,847.41,0.79408752]
[1756996778212,0.72382495,848.02,847.4,0.79408752]
[1756996778412,0.72382495,848.01,847.4,0.79408752]
[1756996778612,0.72382495,848.0,847.4,0.79408752]
[1756996778913,0.72382495,847.99,847.4,0.79408752]
[1756996779207,0.72382495,847.98,847.42,0.79408752]
[1756996779407,0.72382495,847.97,847.42,0.79408752]
[1756996779710,0.79503336,848.15,847.42,0.79408752]
[1756996780012,0.72277722,848.14,847.42,0.79408752]
[1756996780409,1.51781058,848.14,847.41,0.79408752]
[1756996780613,0.72277722,848.13,847.41,0.79408752]
[1756996780914,0.79503336,848.11,847.43,0.79408752]
[1756996781114,0.72277722,848.1,847.41,0.79408752]
[1756996781314,0.72277722,848.1,847.21,1.0571444]
[1756996781315,0.72277722,848.1,847.4,0.79408752]
[1756996781816,0.72263603,848.09,847.4,0.79408752]
[1756996782012,0.72263603,848.08,847.4,0.79408752]
[1756996782313,0.72254761,848.07,847.4,0.79408752]
[1756996782512,0.72254761,848.06,847.4,0.79408752]
[1756996782713,0.72254761,848.05,847.37,0.79408752]
[1756996782916,0.72254761,848.05,847.36,0.79408752]
[1756996783617,0.72254761,848.04,847.36,0.79408752]
[1756996783818,0.72254761,848.03,847.35,0.79408752]
[1756996784015,0.72254761,848.02,847.24,0.79408752]
[1756996784221,0.72254761,848.01,847.23,0.79408752]
[1756996784516,0.72254761,848.0,847.23,0.79408752]
[1756996784817,0.72254761,847.99,847.23,0.79408752]
[1756996785020,0.2051669,848.21,847.23,0.79408752]
[1756996785321,0.2051669,848.21,847.22,0.79408752]
[1756996787319,0.2051669,848.21,847.21,0.79408752]
[1756996787519,0.2051669,848.21,847.22,0.79408752]
[1756996787717,0.2051669,848.21,847.21,0.79408752]
[1756996788619,0.79503336,848.19,847.13,0.79408752]
[1756996788820,0.72221401,848.18,847.13,0.79408752]
[1756996789418,0.72221401,848.17,847.12,0.79408752]
[1756996789622,0.72221401,848.16,847.12,0.79408752]
[1756996789819,0.72221401,848.15,847.12,0.79408752]
[1756996790025,0.72221401,848.14,847.12,0.79408752]
[1756996790323,0.72221401,848.13,847.12,0.79408752]
[1756996790523,0.72221401,848.12,847.12,0.79408752]
[1756996790725,0.72221401,848.11,847.12,0.79408752]
[1756996790923,0.79503336,848.01,847.25,0.79408752]
[1756996791221,0.72221401,848.0,847.25,0.79408752]
[1756996791722,0.72221401,847.99,847.25,0.79408752]
[1756996791926,0.72221401,847.98,847.25,0.79408752]
[1756996792125,0.72221401,847.97,847.25,0.79408752]
[1756996792421,0.72221401,847.96,847.24,0.79408752]
[1756996792622,0.72221401,847.95,847.24,0.79408752]
[1756996792821,0.72221401,847.94,847.24,0.79408752]
[1756996793026,0.72221401,847.93,847.24,0.79408752]
[1756996793328,0.72221401,847.92,847.24,0.79408752]
[1756996793526,0.79503336,848.05,847.24,0.79408752]
[1756996793727,0.72128836,848.04,847.31,0.79408752]
[1756996793924,0.72128836,848.1,847.31,0.79408752]
[1756996795124,0.72128836,848.12,847.3,0.79408752]
[1756996795328,0.72128836,848.13,847.3,0.79408752]
[1756996795526,0.72128836,848.13,847.28,0.79408752]
[1756996795726,0.72128836,848.16,847.28,0.79408752]
[1756996797527,1.51632172,848.16,847.29,0.79408752]
[1756996797732,0.72128836,848.15,847.29,0.79408752]
[1756996798133,0.72128836,848.15,847.33,0.79408752]
[1756996798334,0.72128836,848.2,847.36,0.79408752]
[1756996798832,0.2051669,848.21,847.35,0.79408752]
[1756996799228,1.72148862,848.21,847.34,0.79408752]
[1756996799430,0.72128836,848.2,847.34,0.79408752]
[1756996799734,1.51632172,848.2,847.34,0.79408752]
[1756996799931,0.72128836,848.19,847.34,0.79408752]
[1756996801333,0.72116056,848.19,847.34,0.79408752]
[1756996801837,0.72116056,848.2,847.34,0.79408752]
[1756996802136,1.51619392,848.2,847.34,0.79408752]
[1756996802437,0.72116056,848.19,847.34,0.79408752]
[1756996802737,0.72116056,848.19,847.35,0.79408752]
[1756996802934,0.79503336,848.19,847.4,0.79408752]
[1756996803238,0.72116056,848.18,847.43,0.79408752]
[1756996803438,0.72116056,848.2,847.44,0.79408752]
[1756996803736,0.72116056,848.2,846.5,2.642861]
[1756996803737,0.72116056,848.2,847.5,0.79408752]
[1756996803937,0.2051669,848.21,847.49,0.79408752]
[1756996806139,0.2051669,848.21,847.47,0.79408752]
[1756996806833,0.2051669,848.21,847.48,0.79408752]
[1756996807338,0.2051669,848.21,847.31,1.0571444]
[1756996807634,0.2051669,848.21,847.48,0.79226859]
[1756996808230,0.2051669,848.21,847.45,0.79226859]
[1756996810732,0.2051669,848.21,847.44,0.79226859]
[1756996810937,0.2051669,848.21,847.42,0.79226859]
[1756996811333,0.99827985,848.21,847.38,0.79226859]
[1756996811537,0.72116056,848.2,847.38,0.79226859]
[1756996812438,0.92632746,848.21,847.38,0.79226859]
[1756996812634,1.71944041,848.21,847.39,0.79226859]
[1756996812839,0.72116056,848.2,847.39,0.79226859]
[1756996814340,1.51427351,848.2,847.4,0.79226859]
[1756996814636,0.72116056,848.19,847.4,0.79226859]
[1756996815537,1.51427351,848.19,847.39,0.79226859]
[1756996815741,0.72116056,848.18,847.39,0.79226859]
[1756996816637,0.72116056,848.19,847.39,0.79226859]
[1756996819439,0.72116056,848.19,847.4,0.79226859]
[1756996821245,0.79311295,848.16,847.43,0.79226859]
[1756996821444,0.72116056,848.15,847.43,0.79226859]
[1756996822145,1.51427351,848.15,847.43,0.79226859]
[1756996822447,0.72116056,848.14,847.43,0.79226859]
[1756996822742,0.72116056,848.15,847.43,0.79226859]
[1756996822942,1.51427351,848.15,847.43,0.79226859]
[1756996823245,0.72116056,848.14,847.44,0.79226859]
[1756996823745,1.51427351,848.14,847.42,0.79226859]
[1756996823941,0.72116056,848.13,847.42,0.79226859]
[1756996824142,1.51427351,848.13,847.43,0.79226859]
[1756996824446,0.72116056,848.12,847.43,0.79226859]
[1756996824845,0.72164842,848.12,847.43,0.79226859]
[1756996825145,0.72164842,848.12,847.44,0.79226859]
[1756996825442,1.51476137,848.12,847.44,0.79226859]
[1756996825645,0.72164842,848.11,847.44,0.79226859]
[1756996825840,1.51476137,848.12,847.43,0.79226859]
[1756996826043,0.72164842,848.11,847.43,0.79226859]
[1756996826342,1.51484709,848.11,847.44,0.79226859]
[1756996826546,0.72173414,848.1,847.44,0.79226859]
[1756996827147,1.51484709,848.1,847.44,0.79226859]
[1756996827442,0.79311295,848.11,847.44,0.79226859]
[1756996827647,1.51489499,848.1,847.44,0.79226859]
[1756996827845,0.72178204,848.09,847.44,0.79226859]
[1756996828446,1.51489499,848.09,847.44,0.79226859]
[1756996828645,0.72178204,848.08,847.45,0.79226859]
[1756996829150,0.72178204,848.08,847.41,0.79226859]
[1756996829351,0.72178204,848.07,847.42,0.79226859]
[1756996829550,0.72178204,848.06,847.42,0.79226859]
[1756996829748,0.72178204,848.05,847.42,0.79226859]
[1756996829946,0.72178204,848.04,847.46,0.79226859]
[1756996830151,0.72178204,848.03,847.47,0.79226859]
[1756996830349,0.72178204,848.02,847.47,0.79226859]
[1756996830649,0.72178204,848.01,847.47,0.79226859]
[1756996830853,0.72178204,848.0,847.47,0.79226859]
[1756996831053,0.79311295,848.11,847.49,0.79226859]
[1756996831254,1.51504063,848.1,847.49,0.79226859]
[1756996831554,0.72192768,848.09,847.49,0.79226859]
[1756996831753,0.72192768,848.08,847.49,0.79226859]
[1756996831951,0.72192768,848.07,847.49,0.79226859]
[1756996832254,0.72192768,848.06,847.5,0.79226859]
[1756996832450,0.72192768,848.05,847.5,0.79226859]
[1756996832655,0.72192768,848.04,847.5,0.79226859]
[1756996832854,0.72192768,848.03,847.5,0.79226859]
[1756996833056,0.72192768,848.02,847.51,0.79226859]
[1756996833351,0.79311295,848.1,847.51,0.79226859]
[1756996833556,0.72202573,848.09,847.51,0.79226859]
[1756996834556,0.72202573,848.09,847.54,0.79226859]
[1756996834756,0.2051669,848.21,847.27,0.79226859]
[1756996834957,0.2051669,848.21,847.26,0.79226859]
[1756996835854,0.2051669,848.21,847.27,0.79226859]
[1756996837056,0.2051669,848.21,847.31,0.79226859]
[1756996837654,0.2051669,848.21,847.3,0.79226859]
[1756996841559,0.2051669,848.21,847.33,0.79226859]
[1756996841755,0.2051669,848.21,847.36,0.79226859]
[1756996841958,0.2051669,848.21,847.37,0.79226859]
[1756996843758,0.99827985,848.21,847.46,0.79226859]
[1756996843960,0.72210647,848.2,847.48,0.79226859]
[1756996844258,0.79311295,848.18,847.51,0.79226859]
[1756996844458,0.72210647,848.17,847.51,0.79226859]
[1756996844661,0.72210647,848.17,847.49,0.79226859]
[1756996844959,0.72210647,848.16,847.49,0.79226859]
[1756996845162,0.72210647,848.15,847.49,0.79226859]
[1756996845363,0.72210647,848.14,847.51,0.79226859]
[1756996845558,0.72210647,848.13,847.51,0.79226859]
[1756996845862,0.72210647,848.12,847.51,0.79226859]